{"text_format":"1","workbook":"xlsx","n_sheets":6,"sheets":["Формирователь","Учет","List1","Nakladnaya","Ishod","Ishod (2)"],"not_rendered":{"charts":0,"images":9,"macros":1,"external_links":0,"defined_names":0,"comments":0,"pivot_tables":0},"unopened":[],"bounds":{"document_bytes":16777216,"sheet_cells":100000,"rows_first":2000,"rows_last":500,"rows_between":2000,"halvings":0,"cell_chars":16384,"cell_head_chars":4096},"cells_cut":0,"cells_raw":0,"read":"whole","date_system":"1900"}

{"sheet":"Формирователь","index":0,"n_rows":22,"n_cols":21,"rows_kept":22,"cut":false,"hidden":false,"merged":[[14,15,14,20],[12,2,12,4],[12,5,12,8],[12,9,12,10],[12,12,12,13],[9,19,9,20],[5,19,5,20],[5,12,5,14],[7,15,7,18],[7,19,7,20],[9,5,9,10],[5,5,5,10],[7,5,7,10],[5,2,5,4],[6,2,6,4],[7,2,7,4],[8,2,8,4],[9,2,9,4],[1,1,1,21],[3,2,3,4],[3,5,3,10],[3,12,3,13],[3,15,3,20],[18,1,18,21],[7,12,7,14],[14,12,14,13],[21,2,21,3],[21,5,21,10],[21,12,21,13],[21,15,21,20],[11,2,11,4],[13,2,13,4],[14,2,14,4],[9,12,9,14],[14,9,14,10],[14,5,14,8],[9,15,9,18]]}
[]
[null,"ТРЕБОВАНИЕ-НАКЛАДНАЯ"]
[]
[null,null,"№",null,null,777,null,null,null,null,null,null,"Дата ",null,null,"2024-11-10"]
[]
[null,null,"Учреждение",null,null,"ип",null,null,null,null,null,null,"Ответственный исполнитель",null,null,"Нананана",null,null,null,{"$f":"VLOOKUP(P6,List1!O2:P175,2,FALSE)","v":"ЛПС"}]
[]
[null,null,"Структурное подразделение получатель",null,null,"в/ч 1111",null,null,null,null,null,null,"Отпустил",null,null,"Олег",null,null,null,{"$f":"VLOOKUP(P8,List1!K2:L175,2,FALSE)","v":"просто"}]
[]
[null,null,"Структурное подразделение отправитель",null,null,"Склад 2",null,null,null,null,null,null,"Получил",null,null,"Вильям",null,null,null,{"$f":"VLOOKUP(P10,List1!M2:N175,2,FALSE)","v":"Склад"}]
[]
[]
[null,null,"Затребовал",null,null,"Сидоров",null,null,null,{"$f":"VLOOKUP(F13,List1!#REF!,2,FALSE)","v":{"$error":"#REF!"}},null,null,"Наименование",null,null,"Подушка с синтетическим наполнителем 68х68",null,null,null,null,{"$f":"VLOOKUP(P13,List1!B2:C175,2,FALSE)","v":"шт"}]
[]
[null,null,"Разрешил",null,null,"Перт",null,null,null,{"$f":"VLOOKUP(F15,List1!I2:J175,2,FALSE)","v":"ЗКТ"},null,null,"Колличество",null,null,36]
[]
[]
[]
[null,"ПРИХОД"]
[]
[]
[null,null,"Наименование",null,null,null,null,null,null,null,null,null,"Колличество"]

{"sheet":"Учет","index":1,"n_rows":175,"n_cols":7,"rows_kept":175,"cut":false,"hidden":false,"merged":[]}
["№ п/п","Наименование","Ед. изм.","На начало месяца","Приход","Расход","Остаток"]
[1,"Шапка утепленная ВКПО","шт",1000,null,null,{"$f":"D2+E2-F2","v":1000}]
[2,"Шапка утепленная (ДМС) ВКПО 2.0","шт",1000,null,null,{"$f":"D3+E3-F3","v":1000}]
[3,"Шапка утепленная (ДМС) ВКПО 3.0","шт",1000,null,null,1000]
[4,"Шапка утепленная (ДМС) ВКПО 3.1","шт",1000,null,null,1000]
[5,"Шапка-ушанка мех.","шт",1000,null,null,1000]
[6,"Фуражки летние ВКПО","шт",1000,null,null,1000]
[7,"Фуражки летние ВКПО 2.0","шт",1000,null,null,1000]
[8,"Фуражки летние ВКПО 3.0","шт",1000,null,null,1000]
[9,"Фуражки летние ВКПО 3.1","шт",1000,null,null,1000]
[10,"Фуражки летние ВКПО 4.0","шт",1000,null,null,1000]
[11,"Шарф летний ВКПО 3.0","шт",1000,null,null,1000]
[12,"Шарф ВКПО","шт",1000,null,null,1000]
[13,"Шарф  зимний ВКПО 3.0","шт",1000,null,null,1000]
[14,"Балаклава ","шт",1000,null,null,1000]
[15,"Куртка утепленная ВКПО  ","шт",1000,null,null,1000]
[16,"Брюки утепленные ВКПО","шт",1000,null,null,1000]
[17,"Костюм утепленный ВКПО 2.0","компл",1000,null,null,1000]
[18,"Костюм утепленный ВКПО 3.0","компл",1000,null,null,1000]
[19,"Костюм утепленный ВКПО 3.1","компл",1000,null,null,1000]
[20,"Костюм утепленный ВКПО 4.0","компл",1000,null,null,1000]
[21,"Куртка-ветровка","шт",1000,null,null,1000]
[22,"Куртка флисовая ВКПО","шт",1000,null,null,1000]
[23,"Куртка флисовая ВКПО 2.0","шт",1000,null,null,1000]
[24,"Куртка флисовая ВКПО 3.0","шт",1000,null,null,1000]
[25,"Куртка флисовая ВКПО 3.1","шт",1000,null,null,1000]
[26,"Костюм ВВЗ ВКПО","компл",1000,null,null,1000]
[27,"Костюм ВВЗ ВКПО 2.0","компл",1000,null,null,1000]
[28,"Костюм ВВЗ ВКПО 3.0","компл",1000,null,null,1000]
[29,"Костюм ВВЗ ВКПО 3.1","компл",1000,null,null,1000]
[30,"Костюм ВВЗ ВКПО 4.0","компл",1000,null,null,1000]
[31,"плащ-палатка(плащ-никидка)","шт",1000,null,null,1000]
[32,"Костюм ДМС ВКПО","компл",1000,null,null,1000]
[33,"Костюм ДМС ВКПО 2.0","компл",1000,null,null,1000]
[34,"Костюм ДМС ВКПО 3.0","компл",1000,null,null,1000]
[35,"Костюм ДМС ВКПО 3.1","компл",1000,null,null,1000]
[36,"Костюм ДМС расцветки \"Цифра\"","компл",1000,null,null,1000]
[37,"Костюм летний ВКПО","компл",1000,null,null,1000]
[38,"Костюм летний ВКПО 2.0","компл",1000,null,null,1000]
[39,"Костюм летний  ВКПО 3.0","компл",1000,null,null,1000]
[40,"Костюм летний  ВКПО 3.1","компл",1000,null,null,1000]
[41,"Костюм летний ВКПО 4.0","компл",1000,null,null,1000]
[42,"Жилет утепленный ВКПО ","шт",1000,null,null,1000]
[43,"Белье флисовое ВКПО","компл",1000,null,null,1000]
[44,"Белье нательное флисовое ВКПО 3.0","компл",1000,null,null,1000]
[45,"Белье нательное флисовое ВКПО 3.1","компл",1000,null,null,1000]
[46,"Белье нательное влагоотводящее длинное ВКПО","компл",1000,null,null,1000]
[47,"Белье (фуфайка, кальсоны) специальное защитного цвета ВКПО 4.0","компл",1000,null,null,1000]
[48,"Белье нательное серого цвета (тип А)","компл",1000,null,null,1000]
[49,"Белье зимнее серого цвета (тип В)","компл",1000,null,null,1000]
[50,"Футболка защитного цвета. ВКПО 2.0.","шт",1000,null,null,1000]
[51,"Трусы защитного цвета ВКПО 2.0","шт",1000,null,null,1000]
[52,"Футболка защитного цвета. ВКПО","шт",1000,null,null,1000]
[53,"Трусы защитного цвета ВКПО","шт",1000,null,null,1000]
[54,"Белье (футболка, трусы) летнее защитного цвета ВКПО 4.0","компл",1000,null,null,1000]
[55,"Футболка разовая","шт",1000,null,null,1000]
[56,"Трусы разовые","шт",1000,null,null,1000]
[57,"Фуфайка разовая","шт",1000,null,null,1000]
[58,"Ремень поясной ВКПО","шт",1000,null,null,1000]
[59,"Ремень  поясной тактический ","шт",1000,null,null,1000]
[60,"Ремень брючной ВКПО ","шт",1000,null,null,1000]
[61,"Ремень брючной ст. обр.","шт",1000,null,null,1000]
[62,"Носки летние х/б","пар",1000,null,null,1000]
[63,"Носки летние","пар",1000,null,null,1000]
[64,"Носки зимние","пар",1000,null,null,1000]
[65,"Рукавицы утепленные ВКПО","пар",1000,null,null,1000]
[66,"Перчатки пятипалые шерстяные (полушерстяные) в т.ч. ОИ 327","пар",1000,null,null,{"$f":"D67+E67-F67","v":1000}]
[67,"Баул ВКПО, в т.ч. ОИ 289","шт",1000,null,null,1000]
[68,"Баул ВКПО 2.0","шт",1000,null,null,1000]
[69,"Мешок вещевой","шт",1000,null,null,1000]
[70,"Ботинки с в/б тип Б","пар",1000,null,null,1000]
[71,"Ботинки летние специальные защитного цвета","пар",1000,null,null,1000]
[72,"Кроссовки летние черн.цвета","пар",1000,null,null,1000]
[73,"Ботинки с в/б для низких температур","пар",1000,null,null,1000]
[74,"Ботинки зимние специальные","пар",1000,null,null,1000]
[75,"Ботинки демисезонные специальные","пар",1000,null,null,1000]
[76,"Туфли облегченные","пар",1000,null,null,1000]
[77,"Тапочки казарменные","пар",1000,null,null,1000]
[78,"Костюм технический летний, в т.ч. тип Б","компл",1000,null,null,1000]
[79,"Костюм технический (специальный) утепленный, в т.ч. тип Б","компл",1000,null,null,1000]
[80,"Сапоги резиновые утепленные","пар",1000,null,null,1000]
[81,"Сапоги резиновые технические","пар",1000,null,null,1000]
[82,"Мешок спальный","шт",1000,null,null,1000]
[83,"Вкладыши к спальным мешкам","шт",1000,null,null,1000]
[84,"Коврик термоизоляционный","шт",1000,null,null,1000]
[85,"Подушка с синтетическим наполнителем","шт",1000,null,null,1000]
[86,"Подушка с синтетическим наполнителем 68х68","шт",1000,null,null,1000]
[87,"Матрац армейский","шт",1000,null,null,1000]
[88,"Одеяло ведомственное серого цвета","шт",1000,null,null,1000]
[89,"Пододеяльник набивной 230х150 для госпиталей \"Армия России\"","шт",1000,null,null,1000]
[90,"Пододеяльник формы \"Конверт\"","шт",1000,null,null,1000]
[91,"Простынь х/б","шт",1000,null,null,1000]
[92,"Простынь набивная 230х150 для госпиталей \"Армия России\"","шт",1000,null,null,1000]
[93,"Наволочка верхняя размером 60х50 см","шт",1000,null,null,1000]
[94,"Наволочка верхняя размером 70х70 см","шт",1000,null,null,1000]
[95,"Наволочка тюфячная","шт",1000,null,null,1000]
[96,"Полотенце вафельное","шт",1000,null,null,1000]
[97,"Полотенце махровое синего цвета","шт",1000,null,null,1000]
[98,"Полотенце махровое белого цвета ","шт",1000,null,null,1000]
[99,"Фуражка х/б летняя полевая расцветки \"Цифра\"","шт",1000,null,null,1000]
[100,"Фуражка х/б летняя полевая расцветки \"Флора\"","шт",1000,null,null,1000]
[101,"Костюм зимний полевой расцветки \"Цифра\"","компл",1000,null,null,1000]
[102,"Костюм зимний полевой расцветки \"Флора\"","компл",1000,null,null,1000]
[103,"Костюм летний полевой расцветки \"Цифра\"","компл",1000,null,null,1000]
[104,"Костюм летний полевой расцветки \"Флора\"","компл",1000,null,null,1000]
[105,"Колпак поварской","шт",1000,null,null,1000]
[106,"Куртка поварская коричневого цвета","шт",1000,null,null,1000]
[107,"Куртка поварская белого цвета","шт",1000,null,null,1000]
[108,"Брюки поварские коричневого цвета","шт",1000,null,null,1000]
[109,"Фартук поварской","шт",1000,null,null,1000]
[110,"Туфли поварские","пар",1000,null,null,1000]
[111,"Колпак хлопчатобумажный белого цвета","шт",1000,null,null,1000]
[112,"Халат х/б белого цвета с длинным рукавом для муж.мед.персонала (тип А)","шт",1000,null,null,1000]
[113,"Халат х/б для жен.мед.персонала 3/4 (тип Б)","шт",1000,null,null,1000]
[114,"Костюм х/б белого цвета для мужского мед. персонала (тип А)","шт",1000,null,null,1000]
[115,"Костюм х/б белого цвета для женского врачебного и среднего мед.персонала (тип Б)","компл",1000,null,null,1000]
[116,"Костюм х/б голубого цвета для муж.мед. персонала (тип В)","компл",1000,null,null,1000]
[117,"Костюм х/б красного цвета для жен.мед. персонала (тип Г)","компл",1000,null,null,1000]
[118,"Сандали медицинские белого цвета, женские (тип Б)","пар",1000,null,null,1000]
[119,"Сандали медицинские белого цвета, мужские (тип А)","пар",1000,null,null,1000]
[120,"Халат госпитальный","шт",1000,null,null,1000]
[121,"Костюм госпитальный мужской \n(тип А)","компл",1000,null,null,1000]
[122,"Туфли госпитальные для военнослужащих (тип Б)","пар",1000,null,null,1000]
[123,"М-30М","компл",1000,null,null,1000]
[124,"М-30","компл",1000,null,null,1000]
[125,"ПМХ","компл",1000,null,null,1000]
[126,"М-10","компл",1000,null,null,1000]
[127,"УСБ-56","компл",1000,null,null,1000]
[128,"УСТ-56","компл",1000,null,null,1000]
[129,"УЗ-68","компл",1000,null,null,1000]
[130,"М-3","компл",1000,null,null,{"$f":"D131+E131-F131","v":1000}]
[131,"Палатка альпинистская","компл",1000,null,null,1000]
[132,"Лагерная","компл",1000,null,null,1000]
[133,"Палатка \"Бивун\"","компл",1000,null,null,1000]
[134,"Палатка пневмокаркасная на 30 чел","компл",1000,null,null,1000]
[135,"Палатка пневмокаркасная на 10 чел","компл",1000,null,null,1000]
[136,"Брезент бунтовый","компл",1000,null,null,1000]
[137,"Контейнер мягкий","шт",1000,null,null,1000]
[138,"Брезент автомобильный 3,6х4,6","шт",1000,null,null,1000]
[139,"Наволочка белого цвета","шт",1000,null,null,1000]
[140,"Простынь белого цвета","шт",1000,null,null,1000]
[141,"Одеяло белого цвета 150х220","шт",1000,null,null,1000]
[142,"Покрывало 165х230","шт",1000,null,null,1000]
[143,"Пододеяльник белого цвета","шт",1000,null,null,1000]
[144,"Набор предметов гигиены № 1","компл",1000,null,null,1000]
[145,"Набор предметов гигиены № 2","компл",1000,null,null,1000]
[146,"Накидка термоизоляционная","шт",1000,null,null,1000]
[147,"Плащ-накидка","шт",1000,null,null,1000]
[148,"Мобильная баня (палатка)","компл",1000,null,null,1000]
[149,"Бытовая стиральная машина","шт",1000,null,null,1000]
[150,"Бытовая стиральная машина 5 кг","шт",1000,null,null,1000]
[151,"Бытовая стиральная машина 7 кг","шт",1000,null,null,1000]
[152,"Машинка для стрижки волос","шт",1000,null,null,1000]
[153,"Мыло туалетное твердое","кг",1000,null,null,1000]
[154,"Мыло жидкое","кг",1000,null,null,1000]
[155,"Бумага туалетная","рул",1000,null,null,1000]
[156,"Салфетки влажные","упак",1000,null,null,1000]
[157,"Гигиенический наборы индивидуальный","упак",1000,null,null,1000]
[158,"Стиральный порошок","кг",1000,null,null,1000]
[159,"Паста для стирки","кг",1000,null,null,1000]
[160,"Очищающая паста для рук ","кг",1000,null,null,1000]
[161,"Защитный крем для рук регенирирующего действия","кг",1000,null,null,1000]
[162,"Защитный крем для рук гидрофильного действия","кг",1000,null,null,1000]
[163,"МПП-9",null,1000,null,null,1000]
[164,"ММП-2, ММП-2М",null,1000,null,null,1000]
[165,"ППП-60",null,1000,null,null,1000]
[166,"ПМП-60",null,1000,null,null,1000]
[167,"ППБ-32",null,1000,null,null,1000]
[168,"ППБ-32ВУ",null,1000,null,null,1000]
[169,"ППБ-32ВК",null,1000,null,null,1000]
[170,"БП-2",null,1000,null,null,1000]
[171,"БП-1Б",null,1000,null,null,1000]
[172,"БПО-32",null,1000,null,null,1000]
[173,"ПКБП-10",null,1000,null,null,1000]
[174,"БПП-К",null,1000,null,null,1000]

{"sheet":"List1","index":2,"n_rows":175,"n_cols":16,"rows_kept":175,"cut":false,"hidden":false,"merged":[[0,6,0,7],[0,8,0,9],[0,10,0,11],[0,12,0,13],[0,14,0,15]]}
["№ п/п","Наименование","Ед. изм.","Учереждение","Отправитель","Получатель","Затребовал",null,"Разрешил",null,"Отпустил",null,"Получил",null,"Исполниетель"]
[1,"Шапка утепленная ВКПО","шт","ооо","Склад 1","в/ч 0000","Иванов","НВС в/ч 0000 к-н","Иван","НВС ","Илья","Нач. склада с-т","Серега","Нач склада","Мартиросян","ДВС"]
[2,"Шапка утепленная (ДМС) ВКПО 2.0","шт","зао","Склад 2","в/ч 1111","Петров","НВС в/ч 1111 к-н","Перт","ЗКТ","Степан","Нач. склада пр-к","Андрюха","Нач склада","Нананана","ЛПС"]
[3,"Шапка утепленная (ДМС) ВКПО 3.0","шт","оао",null,"в/ч 2222","Сидоров","НВС в/ч 2222 к-н","Сидор","ТРЫН","Олег","просто","Вильям","Склад","Пушкин","КГС"]
[4,"Шапка утепленная (ДМС) ВКПО 3.1","шт","ип",null,"в/ч 3333"]
[5,"Шапка-ушанка мех.","шт"]
[6,"Фуражки летние ВКПО","шт"]
[7,"Фуражки летние ВКПО 2.0","шт"]
[8,"Фуражки летние ВКПО 3.0","шт"]
[9,"Фуражки летние ВКПО 3.1","шт"]
[10,"Фуражки летние ВКПО 4.0","шт"]
[11,"Шарф летний ВКПО 3.0","шт"]
[12,"Шарф ВКПО","шт"]
[13,"Шарф  зимний ВКПО 3.0","шт"]
[14,"Балаклава ","шт"]
[15,"Куртка утепленная ВКПО  ","шт"]
[16,"Брюки утепленные ВКПО","шт"]
[17,"Костюм утепленный ВКПО 2.0","компл"]
[18,"Костюм утепленный ВКПО 3.0","компл"]
[19,"Костюм утепленный ВКПО 3.1","компл"]
[20,"Костюм утепленный ВКПО 4.0","компл"]
[21,"Куртка-ветровка","шт"]
[22,"Куртка флисовая ВКПО","шт"]
[23,"Куртка флисовая ВКПО 2.0","шт"]
[24,"Куртка флисовая ВКПО 3.0","шт"]
[25,"Куртка флисовая ВКПО 3.1","шт"]
[26,"Костюм ВВЗ ВКПО","компл"]
[27,"Костюм ВВЗ ВКПО 2.0","компл"]
[28,"Костюм ВВЗ ВКПО 3.0","компл"]
[29,"Костюм ВВЗ ВКПО 3.1","компл"]
[30,"Костюм ВВЗ ВКПО 4.0","компл"]
[31,"плащ-палатка(плащ-никидка)","шт"]
[32,"Костюм ДМС ВКПО","компл"]
[33,"Костюм ДМС ВКПО 2.0","компл"]
[34,"Костюм ДМС ВКПО 3.0","компл"]
[35,"Костюм ДМС ВКПО 3.1","компл"]
[36,"Костюм ДМС расцветки \"Цифра\"","компл"]
[37,"Костюм летний ВКПО","компл"]
[38,"Костюм летний ВКПО 2.0","компл"]
[39,"Костюм летний  ВКПО 3.0","компл"]
[40,"Костюм летний  ВКПО 3.1","компл"]
[41,"Костюм летний ВКПО 4.0","компл"]
[42,"Жилет утепленный ВКПО ","шт"]
[43,"Белье флисовое ВКПО","компл"]
[44,"Белье нательное флисовое ВКПО 3.0","компл"]
[45,"Белье нательное флисовое ВКПО 3.1","компл"]
[46,"Белье нательное влагоотводящее длинное ВКПО","компл"]
[47,"Белье (фуфайка, кальсоны) специальное защитного цвета ВКПО 4.0","компл"]
[48,"Белье нательное серого цвета (тип А)","компл"]
[49,"Белье зимнее серого цвета (тип В)","компл"]
[50,"Футболка защитного цвета. ВКПО 2.0.","шт"]
[51,"Трусы защитного цвета ВКПО 2.0","шт"]
[52,"Футболка защитного цвета. ВКПО","шт"]
[53,"Трусы защитного цвета ВКПО","шт"]
[54,"Белье (футболка, трусы) летнее защитного цвета ВКПО 4.0","компл"]
[55,"Футболка разовая","шт"]
[56,"Трусы разовые","шт"]
[57,"Фуфайка разовая","шт"]
[58,"Ремень поясной ВКПО","шт"]
[59,"Ремень  поясной тактический ","шт"]
[60,"Ремень брючной ВКПО ","шт"]
[61,"Ремень брючной ст. обр.","шт"]
[62,"Носки летние х/б","пар"]
[63,"Носки летние","пар"]
[64,"Носки зимние","пар"]
[65,"Рукавицы утепленные ВКПО","пар"]
[66,"Перчатки пятипалые шерстяные (полушерстяные) в т.ч. ОИ 327","пар"]
[67,"Баул ВКПО, в т.ч. ОИ 289","шт"]
[68,"Баул ВКПО 2.0","шт"]
[69,"Мешок вещевой","шт"]
[70,"Ботинки с в/б тип Б","пар"]
[71,"Ботинки летние специальные защитного цвета","пар"]
[72,"Кроссовки летние черн.цвета","пар"]
[73,"Ботинки с в/б для низких температур","пар"]
[74,"Ботинки зимние специальные","пар"]
[75,"Ботинки демисезонные специальные","пар"]
[76,"Туфли облегченные","пар"]
[77,"Тапочки казарменные","пар"]
[78,"Костюм технический летний, в т.ч. тип Б","компл"]
[79,"Костюм технический (специальный) утепленный, в т.ч. тип Б","компл"]
[80,"Сапоги резиновые утепленные","пар"]
[81,"Сапоги резиновые технические","пар"]
[82,"Мешок спальный","шт"]
[83,"Вкладыши к спальным мешкам","шт"]
[84,"Коврик термоизоляционный","шт"]
[85,"Подушка с синтетическим наполнителем","шт"]
[86,"Подушка с синтетическим наполнителем 68х68","шт"]
[87,"Матрац армейский","шт"]
[88,"Одеяло ведомственное серого цвета","шт"]
[89,"Пододеяльник набивной 230х150 для госпиталей \"Армия России\"","шт"]
[90,"Пододеяльник формы \"Конверт\"","шт"]
[91,"Простынь х/б","шт"]
[92,"Простынь набивная 230х150 для госпиталей \"Армия России\"","шт"]
[93,"Наволочка верхняя размером 60х50 см","шт"]
[94,"Наволочка верхняя размером 70х70 см","шт"]
[95,"Наволочка тюфячная","шт"]
[96,"Полотенце вафельное","шт"]
[97,"Полотенце махровое синего цвета","шт"]
[98,"Полотенце махровое белого цвета ","шт"]
[99,"Фуражка х/б летняя полевая расцветки \"Цифра\"","шт"]
[100,"Фуражка х/б летняя полевая расцветки \"Флора\"","шт"]
[101,"Костюм зимний полевой расцветки \"Цифра\"","компл"]
[102,"Костюм зимний полевой расцветки \"Флора\"","компл"]
[103,"Костюм летний полевой расцветки \"Цифра\"","компл"]
[104,"Костюм летний полевой расцветки \"Флора\"","компл"]
[105,"Колпак поварской","шт"]
[106,"Куртка поварская коричневого цвета","шт"]
[107,"Куртка поварская белого цвета","шт"]
[108,"Брюки поварские коричневого цвета","шт"]
[109,"Фартук поварской","шт"]
[110,"Туфли поварские","пар"]
[111,"Колпак хлопчатобумажный белого цвета","шт"]
[112,"Халат х/б белого цвета с длинным рукавом для муж.мед.персонала (тип А)","шт"]
[113,"Халат х/б для жен.мед.персонала 3/4 (тип Б)","шт"]
[114,"Костюм х/б белого цвета для мужского мед. персонала (тип А)","шт"]
[115,"Костюм х/б белого цвета для женского врачебного и среднего мед.персонала (тип Б)","компл"]
[116,"Костюм х/б голубого цвета для муж.мед. персонала (тип В)","компл"]
[117,"Костюм х/б красного цвета для жен.мед. персонала (тип Г)","компл"]
[118,"Сандали медицинские белого цвета, женские (тип Б)","пар"]
[119,"Сандали медицинские белого цвета, мужские (тип А)","пар"]
[120,"Халат госпитальный","шт"]
[121,"Костюм госпитальный мужской \n(тип А)","компл"]
[122,"Туфли госпитальные для военнослужащих (тип Б)","пар"]
[123,"М-30М","компл"]
[124,"М-30","компл"]
[125,"ПМХ","компл"]
[126,"М-10","компл"]
[127,"УСБ-56","компл"]
[128,"УСТ-56","компл"]
[129,"УЗ-68","компл"]
[130,"М-3","компл"]
[131,"Палатка альпинистская","компл"]
[132,"Лагерная","компл"]
[133,"Палатка \"Бивун\"","компл"]
[134,"Палатка пневмокаркасная на 30 чел","компл"]
[135,"Палатка пневмокаркасная на 10 чел","компл"]
[136,"Брезент бунтовый","компл"]
[137,"Контейнер мягкий","шт"]
[138,"Брезент автомобильный 3,6х4,6","шт"]
[139,"Наволочка белого цвета","шт"]
[140,"Простынь белого цвета","шт"]
[141,"Одеяло белого цвета 150х220","шт"]
[142,"Покрывало 165х230","шт"]
[143,"Пододеяльник белого цвета","шт"]
[144,"Набор предметов гигиены № 1","компл"]
[145,"Набор предметов гигиены № 2","компл"]
[146,"Накидка термоизоляционная","шт"]
[147,"Плащ-накидка","шт"]
[148,"Мобильная баня (палатка)","компл"]
[149,"Бытовая стиральная машина","шт"]
[150,"Бытовая стиральная машина 5 кг","шт"]
[151,"Бытовая стиральная машина 7 кг","шт"]
[152,"Машинка для стрижки волос","шт"]
[153,"Мыло туалетное твердое","кг"]
[154,"Мыло жидкое","кг"]
[155,"Бумага туалетная","рул"]
[156,"Салфетки влажные","упак"]
[157,"Гигиенический наборы индивидуальный","упак"]
[158,"Стиральный порошок","кг"]
[159,"Паста для стирки","кг"]
[160,"Очищающая паста для рук ","кг"]
[161,"Защитный крем для рук регенирирующего действия","кг"]
[162,"Защитный крем для рук гидрофильного действия","кг"]
[163,"МПП-9","ед."]
[164,"ММП-2, ММП-2М","ед."]
[165,"ППП-60","ед."]
[166,"ПМП-60","ед."]
[167,"ППБ-32","ед."]
[168,"ППБ-32ВУ","ед."]
[169,"ППБ-32ВК","ед."]
[170,"БП-2","ед."]
[171,"БП-1Б","ед."]
[172,"БПО-32","ед."]
[173,"ПКБП-10","ед."]
[174,"БПП-К","ед."]

{"sheet":"Nakladnaya","index":3,"n_rows":28,"n_cols":13,"rows_kept":28,"cut":false,"hidden":false,"merged":[[12,0,12,1],[9,0,9,3],[10,2,10,3],[8,2,8,4],[8,11,8,12],[8,7,8,9],[10,4,11,4],[10,5,11,5],[9,6,11,6],[9,7,9,8],[10,7,11,7],[10,8,11,8],[9,9,11,9],[9,10,9,11],[10,10,11,10],[10,11,11,11],[9,12,11,12],[9,4,9,5],[0,10,0,11],[0,5,0,7],[1,5,1,8],[7,11,7,12],[7,7,7,9],[2,3,2,10],[7,2,7,4],[22,0,22,1],[22,2,22,3],[22,4,22,6],[3,3,3,10],[4,3,4,10],[16,0,16,1],[16,2,16,3],[16,4,16,6],[17,0,17,1],[17,2,17,3],[17,4,17,6],[21,0,21,1],[21,2,21,3],[21,4,21,6],[18,0,18,3],[10,0,11,1],[16,7,16,9],[16,11,16,12],[17,7,17,9],[17,11,17,12],[25,7,25,9],[25,11,25,12],[18,7,18,10],[21,7,22,12],[28,7,28,8],[23,0,23,3],[24,7,24,8],[26,7,26,9],[26,11,26,12],[27,7,27,10]]}
[null,null,null,null,null,"ТРЕБОВАНИЕ-НАКЛАДНАЯ №",null,null,{"$f":"Формирователь!F4","v":777},null,"Форма по ОКУД",null,"Коды"]
[null,null,null,null,"от",{"$f":"Формирователь!P4","v":"2024-11-10"},null,null,null,null,null,"Дата",504204]
["Учреждение",null,null,{"$f":"Формирователь!F6","v":"ип"},null,null,null,null,null,null,null,"по ОКПО"]
["Структурное подразделение-отправитель",null,null,{"$f":"Формирователь!F10","v":"Склад 2"}]
["Структурное подразделение-получатель",null,null,{"$f":"Формирователь!F8","v":"в/ч 1111"}]
["Еденица измерения: руб. (с точностью до второго десятичного знака)"]
[null,null,null,null,null,null,null,null,null,null,null,"по ОКЕЙ",383]
["Затребовал",{"$f":"Формирователь!#REF!","v":{"$error":"#REF!"}},{"$f":"Формирователь!#REF!","v":{"$error":"#REF!"}},null,null,null,"Разрешил",{"$f":"Формирователь!J15","v":"ЗКТ"},null,null,null,{"$f":"Формирователь!F15","v":"Перт"}]
[null,"(должность)","(фамилия, инициалы)",null,null,null,null,"(должность)",null,null,"(подпись)","(расшифровка подписи)"]
["Материальные ценности",null,null,null,"Еденица измерения",null,"Цена","Количество",null,"Сумма (без НДС)","Корреспондирующие счета",null,"Примечание"]
["Наименование",null,"Номер",null,"наиме-\nнование","код по ОКЕИ",null,"затре-\nбовано","отпу-\nщено",null,"дебет","кредит"]
[null,null,"номенк-\nлатурный","паспорта (иной)"]
[1,null,2,3,4,5,6,7,8,9,10,11,12]
[null,null,null,null,null,"Итого"]
[]
["Отпустил",null,null,null,null,null,null,"Ответственный исполнитель"]
[{"$f":"Формирователь!T8","v":"просто"},null,null,null,{"$f":"Формирователь!P8","v":"Олег"},null,null,{"$f":"Формирователь!T6","v":"ЛПС"},null,null,null,{"$f":"Формирователь!P6","v":"Нананана"}]
["(должность)",null,"(подпись)",null,"(расшифровка подписи)",null,null,"(должность)",null,null,"(подпись)","(расшифровка подписи)"]
[{"$f":"F2","v":"2024-11-10"}]
[]
["Получил",null,null,null,null,null,null,"Отметка в бухгалтерии"]
[{"$f":"Формирователь!T10","v":"Склад"},null,null,null,{"$f":"Формирователь!P10","v":"Вильям"},null,null,"Корреспонденция счетов (графы 10, 11) отражена\n в журнале операции за _______________20____г."]
["(должность)",null,"(подпись)",null,"(расшифровка подписи)"]
[{"$f":"F2","v":"2024-11-10"}]
[null,null,null,null,null,null,null,"Исполнитель"]
[]
[null,null,null,null,null,null,null,"(должность)",null,null,"(подпись)","(расшифровка подписи)"]
[null,null,null,null,null,null,null,"\"_____\"_________________2024 г."]

{"sheet":"Ishod","index":4,"n_rows":27,"n_cols":13,"rows_kept":27,"cut":false,"hidden":false,"merged":[[31,7,31,10],[27,7,27,10],[28,7,28,8],[29,7,29,9],[29,11,29,12],[30,7,30,9],[30,11,30,12],[23,0,23,3],[24,7,24,8],[25,7,25,9],[25,11,25,12],[26,7,26,9],[26,11,26,12],[18,0,18,3],[18,7,18,10],[21,0,21,1],[21,2,21,3],[21,4,21,6],[21,7,22,12],[22,0,22,1],[22,2,22,3],[22,4,22,6],[16,11,16,12],[17,0,17,1],[17,2,17,3],[17,4,17,6],[17,7,17,9],[17,11,17,12],[12,0,12,1],[16,0,16,1],[16,2,16,3],[16,4,16,6],[16,7,16,9],[9,12,11,12],[10,0,11,1],[10,2,10,3],[10,4,11,4],[10,5,11,5],[10,7,11,7],[10,8,11,8],[10,10,11,10],[10,11,11,11],[9,0,9,3],[9,4,9,5],[9,6,11,6],[9,7,9,8],[9,9,11,9],[9,10,9,11],[7,2,7,4],[7,7,7,9],[7,11,7,12],[8,2,8,4],[8,7,8,9],[8,11,8,12],[4,3,4,10],[0,5,0,7],[0,10,0,11],[1,5,1,8],[2,3,2,10],[3,3,3,10]]}
[null,null,null,null,null,"ТРЕБОВАНИЕ-НАКЛАДНАЯ №",null,null,null,null,"Форма по ОКУД",null,"Коды"]
[null,null,null,null,"от",null,null,null,null,null,null,"Дата",504204]
["Учреждение",null,null,null,null,null,null,null,null,null,null,"по ОКПО"]
["Структурное подразделение-отправитель"]
["Структурное подразделение-получатель"]
["Еденица измерения: руб. (с точностью до второго десятичного знака)"]
[null,null,null,null,null,null,null,null,null,null,null,"по ОКЕЙ",383]
["Затребовал",null,null,null,null,null,"Разрешил"]
[null,"(должность)","(фамилия, инициалы)",null,null,null,null,"(должность)",null,null,"(подпись)","(расшифровка подписи)"]
["Материальные ценности",null,null,null,"Еденица измерения",null,"Цена","Количество",null,"Сумма (без НДС)","Корреспондирующие счета",null,"Примечание"]
["Наименование",null,"Номер",null,"наиме-\nнование","код по ОКЕИ",null,"затре-\nбовано","отпу-\nщено",null,"дебет","кредит"]
[null,null,"номенк-\nлатурный","паспорта (иной)"]
[1,null,2,3,4,5,6,7,8,9,10,11,12]
[null,null,null,null,null,"Итого"]
[]
["Отпустил",null,null,null,null,null,null,"Ответственный исполнитель"]
[]
["(должность)",null,"(подпись)",null,"(расшифровка подписи)",null,null,"(должность)",null,null,"(подпись)","(расшифровка подписи)"]
[]
[]
["Получил",null,null,null,null,null,null,"Отметка в бухгалтерии"]
[null,null,null,null,null,null,null,"Корреспонденция счетов (графы 10, 11) отражена\n в журнале операции за _______________20____г."]
["(должность)",null,"(подпись)",null,"(расшифровка подписи)"]
[]
[null,null,null,null,null,null,null,"Исполнитель"]
[]
[null,null,null,null,null,null,null,"(должность)",null,null,"(подпись)","(расшифровка подписи)"]

{"sheet":"Ishod (2)","index":5,"n_rows":30,"n_cols":13,"rows_kept":30,"cut":false,"hidden":false,"merged":[[34,7,34,10],[15,0,15,1],[14,0,14,1],[13,0,13,1],[12,0,12,1],[30,7,30,10],[31,7,31,8],[32,7,32,9],[24,0,24,1],[24,2,24,3],[24,4,24,6],[24,7,25,12],[25,0,25,1],[25,2,25,3],[25,4,25,6],[20,0,20,1],[32,11,32,12],[33,7,33,9],[33,11,33,12],[26,0,26,3],[27,7,27,8],[28,7,28,9],[28,11,28,12],[29,7,29,9],[29,11,29,12],[20,2,20,3],[20,4,20,6],[20,7,20,9],[20,11,20,12],[21,0,21,3],[21,7,21,10],[19,0,19,1],[19,2,19,3],[19,4,19,6],[19,7,19,9],[19,11,19,12],[9,12,11,12],[10,0,11,1],[10,2,10,3],[10,4,11,4],[10,5,11,5],[10,7,11,7],[10,8,11,8],[10,10,11,10],[10,11,11,11],[9,0,9,3],[9,4,9,5],[9,6,11,6],[9,7,9,8],[9,9,11,9],[9,10,9,11],[7,2,7,4],[7,7,7,9],[7,11,7,12],[8,2,8,4],[8,7,8,9],[8,11,8,12],[4,3,4,10],[0,5,0,7],[0,10,0,11],[1,5,1,8],[2,3,2,10],[3,3,3,10]]}
[null,null,null,null,null,"ТРЕБОВАНИЕ-НАКЛАДНАЯ №",null,null,null,null,"Форма по ОКУД",null,"Коды"]
[null,null,null,null,"от","\"_____\"_______________2024 г.",null,null,null,null,null,"Дата",504204]
["Учреждение",null,null,"войсковая часть 95394",null,null,null,null,null,null,null,"по ОКПО"]
["Структурное подразделение-отправитель",null,null,"взвод обеспечения прапорщик Самойлов А.С."]
["Структурное подразделение-получатель",null,null,"взвод обеспечения младший сержант Ищенко В.В."]
["Еденица измерения: руб. (с точностью до второго десятичного знака)"]
[null,null,null,null,null,null,null,null,null,null,null,"по ОКЕЙ",383]
["Затребовал","КО мл. с-т","Ищенко В.В.",null,null,null,"Разрешил","НПС в/ч 95394 к-н",null,null,null,"Маржохов К. М."]
[null,"(должность)","(фамилия, инициалы)",null,null,null,null,"(должность)",null,null,"(подпись)","(расшифровка подписи)"]
["Материальные ценности",null,null,null,"Еденица измерения",null,"Цена","Количество",null,"Сумма (без НДС)","Корреспондирующие счета",null,"Примечание"]
["Наименование",null,"Номер",null,"наиме-\nнование","код по ОКЕИ",null,"затре-\nбовано","отпу-\nщено",null,"дебет","кредит"]
[null,null,"номенк-\nлатурный","паспорта (иной)"]
[1,null,2,3,4,5,6,7,8,9,10,11,12]
["Индивидуальный рацион питания",null,null,null,"к-т"]
["РПМК",null,null,null,"к-т"]
["Вода бутилированная",null,null,null,"л"]
[null,null,null,null,null,"Итого"]
[]
["Отпустил",null,null,null,null,null,null,"Ответственный исполнитель"]
["Командир взвода пр-к",null,null,null,"А. Самойлов",null,null,{"$f":"H8","v":"НПС в/ч 95394 к-н"}]
["(должность)",null,"(подпись)",null,"(расшифровка подписи)",null,null,"(должность)",null,null,"(подпись)","(расшифровка подписи)"]
[]
[]
["Получил",null,null,null,null,null,null,"Отметка в бухгалтерии"]
["Командир отделения мл. с-т",null,null,null,"В. Ищенко",null,null,"Корреспонденция счетов (графы 10, 11) отражена\n в журнале операции за _______________20____г."]
["(должность)",null,"(подпись)",null,"(расшифровка подписи)"]
[]
[null,null,null,null,null,null,null,"Исполнитель"]
[]
[null,null,null,null,null,null,null,"(должность)",null,null,"(подпись)","(расшифровка подписи)"]